fUSD/lending_fUSD_20260408
["ID","MTS","AMOUNT","RATE_DAILY","PERIOD"]
[420007138,1775606891991,151.92,6.438e-05,2]
[420007139,1775606892205,151.92,6.816e-05,2]
[420007140,1775606892389,151.92,7.195e-05,2]
[420007141,1775606892493,151.92,7.574e-05,2]
[420007142,1775606892644,151.92,7.953e-05,2]
[420007143,1775606892872,151.92,8.331e-05,2]
[420007144,1775606892965,151.92,8.71e-05,2]
[420007145,1775606893160,151.92,9.089e-05,2]
[420007146,1775606893678,151.92,9.467e-05,2]
[420007147,1775606893812,151.92,9.846e-05,2]
[420007148,1775606893913,151.92,0.00010225,2]
[420007149,1775606894057,151.92,0.00010603,2]
[420007150,1775606895664,151.92,0.00010982,2]
[420007151,1775606895890,151.92,0.00011361,2]
[420007156,1775607014068,9696.17,0.000107,2]
[420007157,1775607014093,10000.01,0.000107,2]
[420007158,1775607014117,10000.01,0.000107,2]
[420007159,1775607014140,10000.01,0.000107,2]
[420007160,1775607014163,10000.01,0.000107,2]
[420007161,1775607014187,10000.01,0.000107,2]
[420007162,1775607014211,10000.01,0.000107,2]
[420007163,1775607014234,10000.01,0.000107,2]
[420007164,1775607014637,10000.01,0.000107,2]
[420007165,1775607014663,10000.01,0.000107,2]
[420007167,1775607025138,-4467.01,0.000103,3]
[420007168,1775607025264,-1065.99,0.000103,3]
[420007169,1775607025294,-2335.03,0.000104,5]
[420007170,1775607026077,-3197.97,0.000104,5]
[420007171,1775607029289,-4671.35,0.000107,2]
[420007172,1775607029337,-10000.01,0.000107,2]
[420007173,1775607029412,-10000.01,0.000107,2]
[420007174,1775607029736,-10000.01,0.000107,2]
[420007175,1775607030390,-10000.01,0.000107,2]
[420007176,1775607030418,-10000.01,0.000107,2]
[420007177,1775607030480,-3860.80232188,0.000107,2]
[420007178,1775607030525,-2278.40535624,0.000107,2]
[420007193,1775607032117,-151.92,0.00011739,2]
[420007194,1775607032127,-151.92,0.00012118,2]
[420007195,1775607032137,-151.92,0.00012497,2]
[420007196,1775607032148,-463.91600978,0.00012569,2]
[420007197,1775607032158,-1600.0,0.00012648,2]
[420007198,1775607032167,-150.0,0.00012669,2]
[420007199,1775607032177,-151.0,0.00012845,2]
[420007200,1775607032186,-151.92,0.00012875,2]
[420007201,1775607032196,-935.82512388,0.00012999,2]
[420007202,1775607032206,-250.0,0.00013,2]
[420007203,1775607032216,-1200.0,0.00013048,2]
[420007204,1775607032225,-300.0,0.00013049,2]
[420007205,1775607032235,-506.0,0.000131,2]
[420007206,1775607032246,-463.91600976,0.00013179,2]
[420007207,1775607032256,-2000.0,0.00013194,2]
[420007208,1775607032266,-918.35015389,0.00013209,2]
[420007209,1775607032278,-107.64984611,0.00013209,2]
[420007210,1775607032288,-1155.02574113,0.00013326,2]
[420007211,1775607032298,-1706.47454136,0.00013425,2]
[420007212,1775607032310,-1533.52545864,0.00013425,2]
[420007213,1775607032320,-2138.0,0.00013699,2]
[420007214,1775607032330,-150.0,0.00013699,2]
[420007215,1775607032340,-150.0,0.00013699,2]
[420007216,1775607032350,-150.0,0.000137,2]
[420007217,1775607032359,-274.0,0.00013715,2]
[420007218,1775607032369,-1365.0,0.00013743,2]
[420007219,1775607032378,-1309.0,0.0001377,2]
[420007220,1775607032388,-150.0,0.00013789,2]
[420007221,1775607032398,-463.91600976,0.00013789,2]
[420007222,1775607032407,-508.3287,0.0001379,2]
[420007223,1775607032417,-19787.1117,0.0001379,2]
[420007224,1775607032426,-926.45726613,0.00013873,2]
[420007225,1775607032435,-151.0,0.00013882,2]
[420007226,1775607032445,-151.0,0.00013882,2]
[420007227,1775607032455,-151.0,0.00013882,2]
[420007228,1775607032464,-151.0,0.00013882,2]
[420007229,1775607032475,-151.0,0.00013882,2]
[420007230,1775607032484,-151.0,0.00013882,2]
[420007231,1775607032494,-200.0,0.00013882,2]
[420007232,1775607032503,-151.0,0.00013882,2]
[420007233,1775607032512,-151.0,0.00013882,2]
[420007234,1775607032522,-151.0,0.00013882,2]
[420007235,1775607032531,-151.0,0.00013882,2]
[420007236,1775607032540,-151.0,0.00013882,2]
[420007237,1775607032550,-151.0,0.00013882,2]
[420007238,1775607032559,-500.0,0.00013889,2]
[420007239,1775607032569,-500.0,0.00013889,2]
[420007240,1775607032579,-286.81325577,0.00013889,2]
[420007241,1775607032590,-500.0,0.00013889,2]
[420007242,1775607032600,-500.0,0.00013889,2]
[420007243,1775607032611,-500.0,0.00013889,2]
[420007244,1775607032622,-500.0,0.00013889,2]
[420007245,1775607032632,-500.0,0.00013889,2]
[420007246,1775607032642,-500.0,0.00013889,2]
[420007247,1775607032652,-500.0,0.00013889,2]
[420007248,1775607032662,-500.0,0.00013889,2]
[420007249,1775607032671,-400.0,0.00013889,2]
[420007250,1775607032680,-500.0,0.00013889,2]
[420007251,1775607032690,-500.0,0.00013889,2]
[420007252,1775607033020,-500.0,0.00013889,2]
[420007253,1775607033048,-500.0,0.00013889,2]
[420007254,1775607033059,-500.0,0.00013889,2]
[420007255,1775607033069,-500.0,0.00013889,2]
[420007256,1775607033078,-500.0,0.00013889,2]
[420007257,1775607033087,-500.0,0.00013889,2]
[420007258,1775607033097,-500.0,0.00013889,2]
[420007259,1775607033106,-500.0,0.00013889,2]
[420007260,1775607033117,-500.0,0.00013889,2]
[420007261,1775607033127,-500.0,0.00013889,2]
[420007262,1775607033136,-500.0,0.00013889,2]
[420007263,1775607033146,-500.0,0.00013889,2]
[420007264,1775607033155,-500.0,0.00013889,2]
[420007265,1775607033165,-500.0,0.00013889,2]
[420007266,1775607033174,-500.0,0.00013889,2]
[420007267,1775607033183,-500.0,0.00013889,2]
[420007268,1775607033193,-252.79996279,0.00013889,2]
[420007269,1775607033203,-500.0,0.00013889,2]
[420007270,1775607033213,-500.0,0.00013889,2]
[420007271,1775607033222,-500.0,0.00013889,2]
[420007272,1775607033232,-18074.85876355,0.0001389,2]
[420007273,1775607033244,-9839.4709653,0.0001389,2]
[420007274,1775607033287,-871.83149132,0.0001389,2]
[420007275,1775607033298,-26130.50548091,0.0001389,2]
[420007276,1775607033360,-712.4976314,0.0001389,2]
[420007277,1775607033372,-25516.55747831,0.0001389,2]
[420007278,1775607033384,-8408.46727034,0.0001389,2]
[420007279,1775607033395,-294.40797712,0.0001389,2]
[420007280,1775607033457,-2182.37961044,0.0001389,2]
[420007281,1775607033469,-300.0,0.0001389,2]
[420007282,1775607033483,-1162.48722128,0.0001389,2]
[420007283,1775607033495,-447.18897472,0.0001389,2]
[420007284,1775607033528,-400.0,0.0001389,2]
[420007285,1775607033539,-584.03326495,0.0001389,2]
[420007286,1775607033550,-292.97700002,0.0001389,2]
[420007287,1775607033578,-971.345366,0.0001389,2]
[420007308,1775607038318,-682.86,0.00013789,2]
[420007309,1775607038329,-573.54417357,0.0001389,2]
[420007310,1775607038341,-3340.20000024,0.0001389,2]
[420007311,1775607038404,-2120.45485158,0.0001389,2]
[420007312,1775607038534,-4165.07790479,0.0001389,2]
[420007313,1775607038545,-650.75605353,0.0001389,2]
[420007314,1775607038557,-1281.45660846,0.0001389,2]
[420007315,1775607038568,-1508.47859936,0.0001389,2]
[420007316,1775607038579,-1522.82717172,0.0001389,2]
[420007317,1775607038602,-15067.49824301,0.0001389,2]
[420007318,1775607038627,-857.48574524,0.0001389,2]
[420007319,1775607038639,-57654.64905016,0.0001389,2]
[420007320,1775607038651,-500.0,0.0001389,2]
[420007338,1775607040499,-157.73,0.00013401,2]
[420007339,1775607040509,-1868.62340268,0.0001389,2]
[420007340,1775607040519,-150.0,0.00013973,2]
[420007341,1775607040528,-926.45726611,0.00014098,2]
[420007342,1775607040537,-389.02,0.0001419,2]
[420007343,1775607040547,-266.84091679,0.0001419,2]
[420007344,1775607040556,-1217.59271065,0.00014229,2]
[420007345,1775607040586,-382.40728935,0.00014229,2]
[420007346,1775607040595,-150.0,0.00014247,2]
[420007347,1775607040604,-926.45726611,0.00014323,2]
[420007348,1775607040615,-506.6971917,0.00014353,2]
[420007349,1775607040640,-931.41509314,0.00014353,2]
[420007350,1775607040667,-241.88771516,0.00014353,2]
[420007351,1775607040676,-180.63,0.00014384,2]
[420007352,1775607040685,-598.21085506,0.0001439,2]
[420007353,1775607040697,-535.94538832,0.0001439,2]
[420007354,1775607041355,-1508.45271726,0.0001439,2]
[420007389,1775607044428,-443.98144868,0.0001439,2]
[420007390,1775607044440,-7321.77122863,0.0001439,2]
[420007391,1775607044450,-150.0,0.000144,2]
[420007392,1775607044459,-150.0,0.000144,2]
[420007393,1775607044468,-150.0,0.000144,2]
[420007394,1775607044478,-150.0,0.000144,2]
[420007395,1775607044487,-150.0,0.000144,2]
[420007396,1775607044497,-150.0,0.000144,2]
[420007397,1775607044506,-150.0,0.000144,2]
[420007398,1775607044516,-150.0,0.000144,2]
[420007399,1775607044525,-150.0,0.000144,2]
[420007400,1775607044535,-200.0,0.0001443,2]
[420007401,1775607044544,-506.0,0.00014438,3]
[420007402,1775607044554,-178.831115,0.00014488,2]
[420007403,1775607044563,-926.45726611,0.00014549,2]
[420007404,1775607044572,-500.0,0.00014637,2]
[420007405,1775607044582,-4479.42,0.00014638,2]
[420007406,1775607044592,-1955.34,0.00014657,2]
[420007407,1775607044602,-208.0,0.0001467,4]
[420007408,1775607044612,-1000.0,0.00014769,2]
[420007409,1775607044622,-926.45726611,0.00014774,2]
[420007410,1775607044632,-150.0,0.00014778,2]
[420007411,1775607044642,-250.0,0.00014795,2]
[420007412,1775607044652,-2000.0,0.00014844,2]
[420007413,1775607044662,-590.7,0.00014853,2]
[420007414,1775607044672,-1221.13,0.00014853,2]
[420007415,1775607044682,-500.0,0.00014878,2]
[420007416,1775607044691,-670.78,0.00014878,2]
[420007417,1775607044702,-500.0,0.00014878,2]
[420007418,1775607044711,-500.0,0.00014878,2]
[420007419,1775607044721,-2359.48,0.000149,2]
[420007420,1775607044731,-167.5817,0.000149,2]
[420007421,1775607044741,-255.0,0.00014906,2]
[420007422,1775607044750,-150.0,0.00014933,2]
[420007423,1775607044760,-4733.74989347,0.0001499,2]
[420007424,1775607044770,-926.45726611,0.00014999,2]
[420007425,1775607044780,-300.0,0.00015,2]
[420007426,1775607044790,-2067.70127611,0.00015,2]
[420007427,1775607044799,-1927.62705384,0.00015,2]
[420007437,1775607045700,-6121.9633624,0.00015,2]
[420007438,1775607045711,-500.0,0.00015039,2]
[420007439,1775607045720,-163.39677532,0.0001504,2]
[420007440,1775607045834,-2648.60322468,0.0001504,2]
[420007441,1775607045844,-166.68,0.00015172,2]
[420007442,1775607045854,-201.93286098,0.00015199,2]
[420007443,1775607045863,-174.61919141,0.00015199,2]
[420007444,1775607045874,-1000.0,0.00015199,2]
[420007445,1775607045884,-1000.0,0.00015199,2]
[420007446,1775607045894,-1000.0,0.00015199,2]
[420007447,1775607045904,-280.51567907,0.00015199,2]
[420007448,1775607045916,-295.21379859,0.00015199,2]
[420007449,1775607045928,-29.47232565,0.00015199,2]
[420007450,1775607045938,-151.0,0.00015199,2]
[420007451,1775607045947,-599.60298507,0.00015199,2]
[420007452,1775607045957,-460.9947764,0.00015199,2]
[420007454,1775607045969,-282.51292509,0.00015199,2]
[420007456,1775607045979,-279.9045709,0.00015199,2]
[420007458,1775607045989,-170.0,0.00015199,2]
[420007460,1775607045998,-170.0,0.00015199,2]
[420007462,1775607046008,-170.0,0.00015199,2]
[420007464,1775607046019,-170.0,0.00015199,2]
[420007466,1775607046029,-170.0,0.00015199,2]
[420007467,1775607046038,-170.0,0.00015199,2]
[420007468,1775607046048,-170.0,0.00015199,2]
[420007469,1775607046058,-170.0,0.00015199,2]
[420007470,1775607046069,-170.0,0.00015199,2]
[420007471,1775607046078,-170.0,0.00015199,2]
[420007472,1775607046088,-170.0,0.00015199,2]
[420007473,1775607046097,-150.0,0.000152,2]
[420007474,1775607046107,-150.0,0.000152,2]
[420007475,1775607046117,-2808.87,0.00015205,2]
[420007476,1775607046127,-926.45726611,0.00015224,2]
[420007477,1775607046137,-5888.0,0.0001524,2]
[420007478,1775607046147,-160.0,0.00015243,2]
[420007479,1775607046156,-626.48463,0.00015243,2]
[420007480,1775607046166,-1092.96926,0.00015243,2]
[420007481,1775607046176,-151.0,0.00015254,2]
[420007482,1775607046186,-248.590316,0.00015272,7]
[420007483,1775607046195,-350.0,0.00015278,2]
[420007484,1775607046205,-500.0,0.00015298,2]
[420007485,1775607046215,-670.78,0.00015298,2]
[420007486,1775607046224,-500.0,0.00015298,2]
[420007487,1775607046234,-160.0,0.00015307,2]
[420007488,1775607046244,-185.932999,0.00015307,2]
[420007489,1775607046254,-211.865998,0.00015307,2]
[420007490,1775607046265,-160.0,0.00015307,7]
[420007491,1775607046275,-1110.627648,0.00015307,7]
[420007492,1775607046284,-2061.255297,0.00015307,7]
[420007493,1775607046294,-151.0,0.00015309,2]
[420007494,1775607046304,-151.0,0.00015364,2]
[420007495,1775607046314,-160.0,0.00015366,7]
[420007496,1775607046323,-686.18883,0.00015366,7]
[420007497,1775607046333,-1212.377661,0.00015366,7]
[420007498,1775607046342,-160.0,0.00015366,7]
[420007499,1775607046352,-294.548087,0.00015366,7]
[420007500,1775607046362,-429.096175,0.00015366,7]
[420007501,1775607046374,-320.448455,0.00015366,7]
[420007502,1775607046383,-350.0,0.00015385,2]
[420007503,1775607046393,-300.0,0.000154,5]
[420007504,1775607046403,-512.72251566,0.000154,2]
[420007505,1775607046413,-500.0,0.000154,5]
[420007506,1775607046423,-151.0,0.00015419,2]
[420007507,1775607046433,-452.0,0.00015445,2]
[420007508,1775607046443,-926.45726611,0.0001545,2]
[420007509,1775607046453,-160.0,0.00015452,2]
[420007510,1775607046462,-150.0,0.00015467,2]
[420007511,1775607046472,-151.0,0.00015474,2]
[420007512,1775607046482,-600.0,0.000155,5]
[420007513,1775607046492,-489.00634021,0.000155,2]
[420007515,1775607047027,-742.79373026,0.000155,2]
[420007516,1775607047038,-1100.0,0.000155,5]
[420007517,1775607047047,-151.0,0.00015529,2]
[420007518,1775607047058,-10000.0,0.00015554,2]
[420007519,1775607047067,-6022.0,0.00015566,2]
[420007520,1775607047077,-3772.0,0.00015566,2]
[420007521,1775607047087,-2632.14925236,0.00015584,2]
[420007522,1775607047096,-151.0,0.00015584,2]
[420007523,1775607047106,-1000.0,0.000156,5]
[420007524,1775607047116,-2632.14925228,0.00015619,2]
[420007525,1775607047125,-733.99046594,0.00015634,2]
[420007526,1775607047135,-151.0,0.00015639,2]
[420007527,1775607047145,-2632.14925228,0.00015654,2]
[420007528,1775607047154,-926.45726611,0.00015675,2]
[420007529,1775607047164,-452.0,0.00015678,2]
[420007530,1775607047174,-1033.09810547,0.0001568,2]
[420007531,1775607047183,-1092.25635112,0.0001568,2]
[420007532,1775607047192,-1140.57990939,0.0001568,2]
[420007533,1775607047202,-1079.96695621,0.0001568,2]
[420007534,1775607047211,-1097.19542166,0.0001568,2]
[420007535,1775607047220,-1105.3328814,0.0001568,2]
[420007536,1775607047230,-1592.14609754,0.0001568,2]
[420007537,1775607047240,-3380.89,0.00015684,2]
[420007538,1775607047250,-8710.43,0.00015684,2]
[420007539,1775607047259,-2698.88,0.00015684,2]
[420007540,1775607047269,-446.01,0.00015684,2]
[420007541,1775607047279,-822.67,0.00015684,2]
[420007542,1775607047289,-2632.14925228,0.00015689,2]
[420007543,1775607047298,-1300.0,0.000157,5]
[420007544,1775607047308,-480.0,0.00015719,2]
[420007545,1775607047318,-452.0,0.00015724,2]
[420007546,1775607047327,-2632.14925228,0.00015724,2]
[420007547,1775607047337,-181.08010149,0.00015747,2]
[420007548,1775607047347,-205.32040211,0.00015747,2]
[420007549,1775607047356,-771.01748645,0.00015747,2]
[420007550,1775607047366,-2632.14925228,0.0001576,2]
[420007551,1775607047376,-506.0,0.00015776,4]
[420007552,1775607047385,-2351.0,0.00015788,2]
[420007553,1775607047395,-2632.14925228,0.00015795,2]
[420007554,1775607047405,-1600.0,0.000158,5]
[420007555,1775607047415,-1600.0,0.0001581,2]
[420007556,1775607047424,-1000.0,0.00015813,2]
[420007557,1775607047434,-2471.0,0.00015819,2]
[420007558,1775607047444,-2632.14925228,0.0001583,2]
[420007559,1775607047453,-969.47273923,0.0001583,2]
[420007560,1775607047463,-5888.0,0.00015833,2]
[420007561,1775607047473,-500.0,0.00015839,2]
[420007562,1775607047482,-110904.83630939,0.0001584,2]
[420007563,1775607047492,-2000.0,0.0001584,2]
[420007564,1775607047501,-2000.0,0.0001584,2]
[420007565,1775607047510,-1000.0,0.00015842,2]
[420007566,1775607047520,-1000.0,0.00015844,2]
[420007567,1775607047530,-162.3905,0.0001585,2]
[420007568,1775607047539,-2000.0,0.0001585,2]
[420007569,1775607047549,-162.3905,0.0001586,2]
[420007570,1775607047559,-2632.14925228,0.00015865,2]
[420007571,1775607047569,-162.3905,0.0001587,2]
[420007572,1775607047579,-500.0,0.00015871,2]
[420007573,1775607047588,-200.0,0.00015871,2]
[420007574,1775607047598,-4674.024,0.00015872,2]
[420007575,1775607047607,-500.0,0.00015872,2]
[420007576,1775607047617,-200.0,0.00015872,2]
[420007577,1775607047626,-500.0,0.00015873,2]
[420007578,1775607047636,-207.04815346,0.00015873,2]
[420007579,1775607047646,-247.745,0.00015874,2]
[420007580,1775607047656,-1260.01859963,0.00015874,3]
[420007581,1775607047666,-162.3905,0.0001588,2]
[420007582,1775607047675,-162.3905,0.0001589,2]
[420007583,1775607047685,-500.0,0.0001589,2]
[420007584,1775607047695,-500.0,0.0001589,2]
[420007585,1775607047705,-452.0,0.0001589,2]
[420007586,1775607047715,-5000.0,0.000159,2]
[420007587,1775607047725,-709.0,0.000159,2]
[420007588,1775607047734,-2632.14925228,0.000159,2]
[420007589,1775607047744,-300.0,0.000159,5]
[420007590,1775607047753,-926.45726611,0.000159,2]
[420007591,1775607047763,-1000.0,0.000159,2]
[420007592,1775607047772,-1357.55179989,0.000159,2]
[420007593,1775607047782,-1196.80946725,0.000159,2]
[420007594,1775607047792,-1392.84860724,0.000159,2]
[420007595,1775607047802,-9696.13305719,0.000159,2]
[420007596,1775607047812,-1449.0,0.000159,5]
[420007597,1775607047822,-1000.0,0.00015909,2]
[420007598,1775607047832,-500.0,0.00015932,2]
[420007599,1775607047842,-670.78,0.00015932,2]
[420007600,1775607047852,-500.0,0.00015932,2]
[420007601,1775607047862,-162.59907929,0.00015932,2]
[420007602,1775607047872,-1000.0,0.00015942,2]
[420007603,1775607047882,-150.0,0.00015964,2]
[420007604,1775607047892,-150.0,0.00015972,2]
[420007605,1775607047902,-1000.0,0.00015978,2]
[420007606,1775607047911,-167.8142876,0.0001599,2]
[420007607,1775607047920,-151.0,0.00015997,2]
[420007608,1775607047930,-500.0,0.00015997,2]
[420007609,1775607047940,-13755.2803376,0.00015998,2]
[420007610,1775607047949,-57520.00080077,0.00015998,2]
[420007611,1775607047964,-636.90826411,0.00015998,2]
[420007612,1775607047979,-1240.01175296,0.00015998,2]
[420007613,1775607049034,-160.0,0.00015255,2]
[420007614,1775607049044,-163.686307,0.00015255,2]
[420007615,1775607049054,-92.86289833,0.00015998,2]
[420007616,1775607049066,-34476.75000001,0.00015998,2]
[420007617,1775607049094,-1013.35442177,0.00015998,2]
[420007618,1775607049105,-526.32565591,0.00015998,2]
[420007619,1775607049117,-944.33690615,0.00015998,2]
[420007620,1775607049225,-1421.16632681,0.000156,5]
[420007621,1775607049236,-278.83367319,0.000156,5]
[420007622,1775607049246,-96840.477592,0.00015998,2]
[420007623,1775607049887,5533.0,0.000104,5]
[420007624,1775607050009,4467.01,0.000103,3]
[420007625,1775607050032,1065.99,0.000103,3]
[420007626,1775607050120,8934.02,0.000101,2]
[420007627,1775607050142,10000.01,0.000101,2]
[420007628,1775607050163,328.97,0.000101,2]
[420007635,1775607171104,2448.0,0.000112,5]
[420007636,1775607182293,500.0,0.00011639,2]
[420007638,1775607268368,1019.0,0.000161,120]
[420007647,1775607998977,3941.22,0.00011507,2]
[420007693,1775608233055,-500.0,0.00012868,2]
[420007694,1775608233065,-500.0,0.00012868,2]
[420007695,1775608233076,-500.0,0.00012868,2]
[420007696,1775608233087,-5504.7,0.00012868,2]
[420007697,1775608233098,-600.0,0.00012878,2]
[420007698,1775608233108,-195.0,0.00012878,2]
[420007699,1775608233119,-5000.0,0.00012888,2]
[420007700,1775608233129,-250.0,0.00012908,2]
[420007701,1775608233141,-178.85889288,0.00012912,2]
[420007702,1775608233151,-5000.0,0.00012946,2]
[420007703,1775608233161,-4258.69677983,0.00012946,2]
[420007704,1775608233171,-600.0,0.00012949,2]
[420007705,1775608233182,-250.0,0.00013,2]
[420007706,1775608233192,-600.0,0.00013006,2]
[420007707,1775608233203,-1200.0,0.00013028,2]
[420007708,1775608233214,-1284.25,0.00013029,2]
[420007709,1775608233224,-300.0,0.00013035,2]
[420007710,1775608233235,-300.0,0.00013035,2]
[420007711,1775608233245,-363.69,0.0001306,2]
[420007712,1775608233256,-506.0,0.000131,2]
[420007713,1775608233266,-328.0,0.00013578,2]
[420007714,1775608233276,-1655.84153867,0.00013655,2]
[420007715,1775608233286,-501.0397598,0.00013673,2]
[420007716,1775608233296,-150.0,0.00013688,2]
[420007717,1775608233305,-500.0,0.00013689,2]
[420007718,1775608233315,-500.0,0.00013689,2]
[420007719,1775608233324,-500.0,0.00013689,2]
[420007720,1775608233334,-500.0,0.00013689,2]
[420007721,1775608233344,-500.0,0.00013689,2]
[420007722,1775608233353,-442.49367715,0.00013689,2]
[420007723,1775608233362,-500.0,0.00013689,2]
[420007724,1775608233372,-500.0,0.00013689,2]
[420007725,1775608233383,-500.0,0.00013689,2]
[420007726,1775608233393,-500.0,0.00013689,2]
[420007727,1775608233402,-500.0,0.00013689,2]
[420007728,1775608233412,-326.43042667,0.00013689,2]
[420007729,1775608233423,-1340.0,0.0001369,2]
[420007730,1775608233433,-57845.13463119,0.0001369,2]
[420007731,1775608233446,-2279.77003804,0.0001369,2]
[420007732,1775608233457,-1485.18683167,0.0001369,2]
[420007733,1775608233670,-794.9877224,0.0001369,2]
[420007734,1775608233683,-1249.39039257,0.0001369,2]
[420007735,1775608233695,-500.0,0.0001369,2]
[420007736,1775608233771,-6108.63899614,0.0001369,2]
[420007737,1775608233783,-797.59445327,0.0001369,2]
[420007738,1775608233795,-765.71157577,0.0001369,2]
[420007739,1775608233820,-1148.76047939,0.0001369,2]
[420007740,1775608233832,-1322.37552332,0.0001369,2]
[420007741,1775608233861,-1337.70986208,0.0001369,2]
[420007742,1775608233874,-43490.42449416,0.0001369,2]
[420007743,1775608233883,-150.0,0.00013699,2]
[420007744,1775608233893,-150.0,0.00013699,2]
[420007745,1775608233903,-150.0,0.00013699,2]
[420007746,1775608233913,-150.0,0.00013699,2]
[420007747,1775608233924,-166.66,0.00013699,2]
[420007748,1775608233935,-153.53,0.00013699,2]
[420007749,1775608233945,-1000.0,0.00013699,2]
[420007750,1775608233955,-735.0,0.00013718,2]
[420007751,1775608233966,-835.38384885,0.00013736,2]
[420007752,1775608233979,-171.64739381,0.00013773,2]
[420007753,1775608233990,-167.79050369,0.00013773,2]
[420007754,1775608234001,-500.0,0.00013773,2]
[420007755,1775608234011,-500.0,0.00013773,2]
[420007756,1775608234022,-500.0,0.00013773,2]
[420007757,1775608234033,-500.0,0.00013773,2]
[420007758,1775608234044,-500.0,0.00013773,2]
[420007759,1775608234055,-500.0,0.00013773,2]
[420007760,1775608234066,-363.69,0.00013786,2]
[420007761,1775608234077,-500.0,0.00013786,2]
[420007762,1775608234089,-500.0,0.00013788,2]
[420007763,1775608234099,-500.0,0.00013788,2]
[420007764,1775608234111,-500.0,0.00013788,2]
[420007765,1775608234121,-514.14,0.00013788,2]
[420007766,1775608234132,-500.0,0.00013788,2]
[420007767,1775608234142,-500.0,0.00013788,2]
[420007768,1775608234153,-500.0,0.00013788,2]
[420007769,1775608234162,-500.0,0.00013788,2]
[420007770,1775608234172,-500.0,0.00013788,2]
[420007771,1775608234181,-531.81791081,0.00013788,2]
[420007772,1775608234191,-500.0,0.00013788,2]
[420007773,1775608234200,-500.0,0.00013788,2]
[420007774,1775608234210,-500.0,0.00013788,2]
[420007775,1775608234220,-500.0,0.00013788,2]
[420007776,1775608234230,-500.0,0.00013788,2]
[420007777,1775608234241,-500.0,0.00013788,2]
[420007778,1775608234251,-1117.02022933,0.00013788,5]
[420007779,1775608234262,-232866.33396307,0.00013789,2]
[420007780,1775608235115,-7295.41370007,0.00013789,2]
[420007790,1775608238520,-500.0,0.00012868,2]
[420007791,1775608238899,-364.0,0.00013408,2]
[420007792,1775608238909,-4130.7565,0.00013789,2]
[420007793,1775608238922,-20060.49647241,0.00013789,2]
[420007794,1775608238934,-1049.53799999,0.00013789,2]
[420007795,1775608238967,-55528.17169495,0.00013789,2]
[420007798,1775608239010,-5194.8976806,0.00013789,2]
[420007800,1775608239025,-665.16641538,0.00013789,2]
[420007802,1775608239038,-1192.22109013,0.00013789,2]
[420007804,1775608239051,-1006.60044999,0.00013789,2]
[420007806,1775608239063,-2589.49791791,0.00013789,2]
[420007808,1775608239075,-719.0,0.00013789,2]
[420007812,1775608239100,-336.183201,0.00013789,2]
[420007817,1775608239143,-598.26313241,0.00013789,2]
[420007919,1775608241684,-500.0,0.00012868,2]
[420007920,1775608241694,-11155.31904874,0.00013789,2]
[420007921,1775608241707,-673.72507276,0.00013789,2]
[420007933,1775608244603,-500.0,0.00012868,2]
[420007934,1775608244613,-3658.95544,0.00013789,2]
[420007935,1775608244655,-20033.40748686,0.00013789,2]
[420007936,1775608244716,-63142.46583373,0.00013789,2]
[420007937,1775608244726,-166.66,0.00013836,2]
[420007938,1775608244736,-1655.84153867,0.00013904,2]
[420007939,1775608244746,-200.0,0.00013954,2]